fUST/lending_fUST_20250729
["ID","MTS","AMOUNT","RATE_DAILY","PERIOD"]
[375842693,1753757440636,-460.0,0.00019178,2]
[375842695,1753757440646,-460.0,0.00019178,2]
[375842697,1753757440655,-460.0,0.00019178,2]
[375842699,1753757440665,-460.0,0.00019178,2]
[375842701,1753757440674,-460.0,0.00019178,2]
[375842703,1753757440684,-460.0,0.00019178,2]
[375842704,1753757440693,-460.0,0.00019178,2]
[375842706,1753757440703,-460.0,0.00019178,2]
[375842708,1753757440713,-460.0,0.00019178,2]
[375842710,1753757440723,-460.0,0.00019178,2]
[375842712,1753757440732,-460.0,0.00019178,2]
[375842714,1753757440742,-460.0,0.00019178,2]
[375842716,1753757440752,-460.0,0.00019178,2]
[375842718,1753757440761,-463.30510584,0.00019178,2]
[375842720,1753757440772,-460.0,0.00019178,2]
[375842722,1753757440781,-168.23,0.00019178,2]
[375842724,1753757440791,-460.0,0.00019178,2]
[375842726,1753757440801,-643.02,0.00019178,2]
[375842728,1753757440811,-460.0,0.00019178,2]
[375842730,1753757440820,-460.0,0.00019178,2]
[375842732,1753757440830,-460.0,0.00019178,2]
[375842734,1753757440839,-460.0,0.00019178,2]
[375842736,1753757440849,-460.0,0.00019178,2]
[375842738,1753757440859,-460.90723867,0.00019178,2]
[375842740,1753757440868,-460.0,0.00019178,2]
[375842742,1753757440877,-460.0,0.00019178,2]
[375842744,1753757440887,-460.0,0.00019178,2]
[375842746,1753757440897,-460.0,0.00019178,2]
[375842748,1753757440907,-693.73,0.00019178,2]
[375842750,1753757440916,-460.0,0.00019178,2]
[375842752,1753757440926,-460.0,0.00019178,2]
[375842754,1753757440936,-460.0,0.00019178,2]
[375842756,1753757440946,-460.0,0.00019178,2]
[375842758,1753757440958,-460.0,0.00019178,2]
[375842760,1753757440967,-460.0,0.00019178,2]
[375842762,1753757440977,-1359.1,0.00019178,2]
[375842764,1753757440987,-460.0,0.00019178,2]
[375842766,1753757440997,-460.0,0.00019178,2]
[375842768,1753757441006,-460.0,0.00019178,2]
[375842770,1753757441015,-460.0,0.00019178,2]
[375842772,1753757441025,-460.0,0.00019178,2]
[375842774,1753757441034,-2001.82,0.00019178,2]
[375842776,1753757441044,-463.7,0.00019178,2]
[375842778,1753757441054,-460.0,0.00019178,2]
[375842780,1753757441063,-460.0,0.00019178,2]
[375842782,1753757441072,-460.0,0.00019178,2]
[375842784,1753757441082,-460.0,0.00019178,2]
[375842786,1753757441092,-460.0,0.00019178,2]
[375842788,1753757441101,-460.0,0.00019178,2]
[375842790,1753757441111,-460.0,0.00019178,2]
[375842792,1753757441120,-460.0,0.00019178,2]
[375842794,1753757441130,-460.0,0.00019178,2]
[375842796,1753757441139,-460.0,0.00019178,2]
[375842798,1753757441148,-550.14,0.00019178,2]
[375842800,1753757441157,-661.35,0.00019178,2]
[375842802,1753757441167,-460.0,0.00019178,2]
[375842804,1753757441177,-460.0,0.00019178,2]
[375842806,1753757441186,-460.0,0.00019178,2]
[375842808,1753757441196,-460.0,0.00019178,2]
[375842809,1753757441206,-460.94387041,0.00019178,2]
[375842811,1753757441215,-460.0,0.00019178,2]
[375842813,1753757441225,-460.0,0.00019178,2]
[375842815,1753757441234,-460.0,0.00019178,2]
[375842817,1753757441244,-460.0,0.00019178,2]
[375842819,1753757441253,-460.0,0.00019178,2]
[375842821,1753757441263,-460.0,0.00019178,2]
[375842823,1753757441272,-2030.95,0.00019178,2]
[375842825,1753757441282,-463.58039612,0.00019178,2]
[375842827,1753757441291,-1133.33,0.00019178,2]
[375842829,1753757441301,-460.0,0.00019178,2]
[375842831,1753757441311,-460.0,0.00019178,2]
[375842833,1753757441321,-460.0,0.00019178,2]
[375842835,1753757441331,-460.0,0.00019178,2]
[375842837,1753757441340,-460.0,0.00019178,2]
[375842839,1753757441350,-460.0,0.00019178,2]
[375842841,1753757441359,-460.0,0.00019178,2]
[375842843,1753757441368,-460.0,0.00019178,2]
[375842845,1753757441377,-460.0,0.00019178,2]
[375842847,1753757441387,-460.0,0.00019178,2]
[375842849,1753757441396,-460.0,0.00019178,2]
[375842851,1753757441405,-460.0,0.00019178,2]
[375842853,1753757441414,-460.0,0.00019178,2]
[375842855,1753757441424,-460.0,0.00019178,2]
[375842857,1753757441433,-460.0,0.00019178,2]
[375842859,1753757441442,-460.0,0.00019178,2]
[375842861,1753757441453,-460.0,0.00019178,2]
[375842863,1753757441465,-460.0,0.00019178,2]
[375842864,1753757441476,-460.0,0.00019178,2]
[375842866,1753757441486,-460.0,0.00019178,2]
[375842869,1753757441495,-460.0,0.00019178,2]
[375842870,1753757441506,-460.0,0.00019178,2]
[375842872,1753757441516,-464.26101494,0.00019178,2]
[375842874,1753757441525,-460.0,0.00019178,2]
[375842876,1753757441537,-1252.67,0.00019178,2]
[375842878,1753757441547,-460.0,0.00019178,2]
[375842880,1753757441556,-5072.52,0.00019178,2]
[375842882,1753757441565,-460.0,0.00019178,2]
[375842884,1753757441574,-628.39,0.00019178,2]
[375842886,1753757441584,-460.0,0.00019178,2]
[375842889,1753757441593,-460.0,0.00019178,2]
[375842891,1753757441603,-1395.0,0.00019178,2]
[375842893,1753757441612,-460.0,0.00019178,2]
[375842895,1753757441621,-1374.39,0.00019178,2]
[375842897,1753757441631,-460.0,0.00019178,2]
[375842898,1753757441641,-478.95,0.00019178,2]
[375842900,1753757441650,-460.0,0.00019178,2]
[375842903,1753757441659,-460.0,0.00019178,2]
[375842905,1753757441669,-460.0,0.00019178,2]
[375842907,1753757441678,-460.0,0.00019178,2]
[375842909,1753757441688,-514.18,0.00019178,2]
[375842910,1753757441697,-465.65781633,0.00019178,2]
[375842913,1753757441709,-460.0,0.00019178,2]
[375842915,1753757441718,-460.0,0.00019178,2]
[375842916,1753757441728,-1433.29,0.00019178,2]
[375842918,1753757441737,-460.0,0.00019178,2]
[375842920,1753757441747,-460.0,0.00019178,2]
[375842922,1753757441757,-460.0,0.00019178,2]
[375842923,1753757441767,-460.0,0.00019178,2]
[375842925,1753757441777,-460.92425898,0.00019178,2]
[375842927,1753757441787,-460.0,0.00019178,2]
[375842928,1753757441796,-460.0,0.00019178,2]
[375842929,1753757441806,-460.0,0.00019178,2]
[375842930,1753757441816,-745.39,0.00019178,2]
[375842931,1753757441825,-460.0,0.00019178,2]
[375842932,1753757441835,-460.0,0.00019178,2]
[375842933,1753757441844,-460.0,0.00019178,2]
[375842934,1753757441854,-460.69191773,0.00019178,2]
[375842935,1753757441863,-460.0,0.00019178,2]
[375842936,1753757441873,-460.0,0.00019178,2]
[375842937,1753757441882,-609.18,0.00019178,2]
[375842938,1753757441892,-460.0,0.00019178,2]
[375842939,1753757441902,-460.0,0.00019178,2]
[375842940,1753757441911,-462.76788314,0.00019178,2]
[375842941,1753757441920,-1580.49,0.00019178,2]
[375842942,1753757441930,-460.0,0.00019178,2]
[375842943,1753757441939,-460.0,0.00019178,2]
[375842944,1753757441949,-460.0,0.00019178,2]
[375842945,1753757441961,-460.0,0.00019178,2]
[375842946,1753757441970,-460.0,0.00019178,2]
[375842947,1753757441981,-460.0,0.00019178,2]
[375842948,1753757441991,-460.0,0.00019178,2]
[375842949,1753757442001,-460.0,0.00019178,2]
[375842950,1753757442012,-460.0,0.00019178,2]
[375842951,1753757442021,-547.05,0.00019178,2]
[375842952,1753757442031,-460.0,0.00019178,2]
[375842953,1753757442041,-460.0,0.00019178,2]
[375842954,1753757442051,-179.136259,0.00019178,2]
[375842955,1753757442060,-505.55465851,0.00019178,2]
[375842956,1753757442070,-500.0,0.00019351,2]
[375842957,1753757442079,-500.0,0.00019351,2]
[375842958,1753757442089,-414.76,0.00019442,3]
[375842959,1753757442098,-500.0,0.00019451,2]
[375842961,1753757442107,-500.0,0.00019451,2]
[375842963,1753757442117,-500.0,0.00019451,2]
[375842965,1753757442126,-500.0,0.00019451,2]
[375842967,1753757442136,-1133.33,0.00019451,2]
[375842969,1753757442146,-440.85262255,0.00019452,2]
[375842971,1753757442155,-460.0,0.00019452,2]
[375842973,1753757442164,-460.0,0.00019452,2]
[375842974,1753757442174,-1846.48,0.00019452,2]
[375842975,1753757442184,-460.0,0.00019452,2]
[375842976,1753757442194,-460.0,0.00019452,2]
[375842977,1753757442204,-460.0,0.00019452,2]
[375842978,1753757442215,-460.0,0.00019452,2]
[375842979,1753757442224,-460.0,0.00019452,2]
[375842980,1753757442233,-460.0,0.00019452,2]
[375842981,1753757442243,-460.0,0.00019452,2]
[375842982,1753757442253,-1086.78,0.00019452,2]
[375842983,1753757442262,-460.0,0.00019452,2]
[375842984,1753757442272,-460.0,0.00019452,2]
[375842985,1753757442282,-460.0,0.00019452,2]
[375842986,1753757442291,-593.69,0.00019452,2]
[375842987,1753757442302,-460.0,0.00019452,2]
[375842988,1753757442311,-460.0,0.00019452,2]
[375842990,1753757442322,-460.0,0.00019452,2]
[375842992,1753757442332,-460.0,0.00019452,2]
[375842993,1753757442342,-460.0,0.00019452,2]
[375842995,1753757442351,-460.0,0.00019452,2]
[375842996,1753757442362,-460.0,0.00019452,2]
[375842997,1753757442373,-461.64789004,0.00019452,2]
[375842999,1753757442383,-460.0,0.00019452,2]
[375843000,1753757442393,-460.0,0.00019452,2]
[375843001,1753757442402,-460.0,0.00019452,2]
[375843002,1753757442412,-460.0,0.00019452,2]
[375843003,1753757442421,-460.0,0.00019452,2]
[375843004,1753757442430,-460.0,0.00019452,2]
[375843005,1753757442439,-460.0,0.00019452,2]
[375843006,1753757442449,-460.0,0.00019452,2]
[375843007,1753757442461,-460.0,0.00019452,2]
[375843008,1753757442476,-1292.48,0.00019452,2]
[375843009,1753757442485,-460.0,0.00019452,2]
[375843010,1753757442495,-460.0,0.00019452,2]
[375843011,1753757442506,-460.0,0.00019452,2]
[375843012,1753757442516,-460.0,0.00019452,2]
[375843013,1753757442525,-460.0,0.00019452,2]
[375843014,1753757442535,-460.0,0.00019452,2]
[375843015,1753757442547,-460.0,0.00019452,2]
[375843016,1753757442557,-460.0,0.00019452,2]
[375843017,1753757442566,-460.0,0.00019452,2]
[375843018,1753757442576,-3501.71,0.00019452,2]
[375843019,1753757442585,-460.0,0.00019452,2]
[375843020,1753757442594,-460.0,0.00019452,2]
[375843021,1753757442603,-460.0,0.00019452,2]
[375843022,1753757442613,-460.0,0.00019452,2]
[375843023,1753757442622,-460.0,0.00019452,2]
[375843024,1753757442633,-460.0,0.00019452,2]
[375843025,1753757442642,-163.40006145,0.00019452,2]
[375843026,1753757442652,-460.0,0.00019452,2]
[375843027,1753757442662,-460.0,0.00019452,2]
[375843028,1753757442672,-574.5,0.00019452,2]
[375843029,1753757442681,-460.0,0.00019452,2]
[375843030,1753757442691,-460.0,0.00019452,2]
[375843031,1753757442701,-460.0,0.00019452,2]
[375843032,1753757442712,-572.8,0.00019452,2]
[375843033,1753757442722,-460.0,0.00019452,2]
[375843034,1753757442731,-460.0,0.00019452,2]
[375843035,1753757442741,-460.0,0.00019452,2]
[375843036,1753757442751,-460.0,0.00019452,2]
[375843037,1753757442761,-460.0,0.00019452,2]
[375843038,1753757442770,-460.0,0.00019452,2]
[375843039,1753757442780,-460.0,0.00019452,2]
[375843040,1753757442789,-460.0,0.00019452,2]
[375843041,1753757442800,-460.0,0.00019452,2]
[375843042,1753757442809,-464.01772172,0.00019452,2]
[375843043,1753757442819,-460.0,0.00019452,2]
[375843044,1753757442828,-460.0,0.00019452,2]
[375843045,1753757442838,-643.02,0.00019452,2]
[375843046,1753757442848,-155.61790183,0.00019452,2]
[375843047,1753757442858,-460.0,0.00019452,2]
[375843048,1753757442868,-460.0,0.00019452,2]
[375843049,1753757442879,-460.0,0.00019452,2]
[375843050,1753757442889,-460.0,0.00019452,2]
[375843051,1753757442898,-460.0,0.00019452,2]
[375843052,1753757442908,-693.73,0.00019452,2]
[375843053,1753757442917,-460.0,0.00019452,2]
[375843054,1753757442927,-460.0,0.00019452,2]
[375843055,1753757442936,-460.0,0.00019452,2]
[375843056,1753757442946,-464.00308993,0.00019452,2]
[375843058,1753757442957,-1359.1,0.00019452,2]
[375843059,1753757442967,-324.60871888,0.00019452,2]
[375843060,1753757442976,-460.0,0.00019452,2]
[375843061,1753757442985,-2001.82,0.00019452,2]
[375843062,1753757442995,-463.7,0.00019452,2]
[375843063,1753757443006,-460.0,0.00019452,2]
[375843064,1753757443016,-460.0,0.00019452,2]
[375843065,1753757443025,-460.0,0.00019452,2]
[375843066,1753757443034,-460.0,0.00019452,2]
[375843068,1753757443044,-550.14,0.00019452,2]
[375843069,1753757443053,-460.0,0.00019452,2]
[375843070,1753757443063,-661.35,0.00019452,2]
[375843071,1753757443073,-460.0,0.00019452,2]
[375843072,1753757443083,-460.0,0.00019452,2]
[375843073,1753757443093,-460.0,0.00019452,2]
[375843074,1753757443102,-460.0,0.00019452,2]
[375843075,1753757443112,-471.18258806,0.00019452,2]
[375843076,1753757443121,-460.0,0.00019452,2]
[375843077,1753757443131,-2030.95,0.00019452,2]
[375843078,1753757443140,-460.0,0.00019452,2]
[375843079,1753757443151,-460.0,0.00019452,2]
[375843080,1753757443160,-460.0,0.00019452,2]
[375843081,1753757443170,-466.47247173,0.00019452,2]
[375843082,1753757443179,-460.0,0.00019452,2]
[375843083,1753757443189,-460.0,0.00019452,2]
[375843084,1753757443199,-460.0,0.00019452,2]
[375843085,1753757443209,-460.0,0.00019452,2]
[375843086,1753757443219,-460.0,0.00019452,2]
[375843087,1753757443229,-372.42501981,0.00019452,2]
[375843088,1753757443239,-460.0,0.00019452,2]
[375843089,1753757443248,-460.0,0.00019452,2]
[375843090,1753757443258,-460.0,0.00019452,2]
[375843091,1753757443271,-467.46191031,0.00019452,2]
[375843092,1753757443281,-460.0,0.00019452,2]
[375843093,1753757443290,-1252.67,0.00019452,2]
[375843094,1753757443300,-5072.52,0.00019452,2]
[375843095,1753757443309,-628.39,0.00019452,2]
[375843096,1753757443320,-460.0,0.00019452,2]
[375843097,1753757443329,-460.0,0.00019452,2]
[375843098,1753757443339,-1395.0,0.00019452,2]
[375843099,1753757443348,-1374.39,0.00019452,2]
[375843100,1753757443357,-460.0,0.00019452,2]
[375843101,1753757443366,-478.95,0.00019452,2]
[375843102,1753757443376,-460.0,0.00019452,2]
[375843103,1753757443386,-460.0,0.00019452,2]
[375843104,1753757443395,-514.18,0.00019452,2]
[375843105,1753757443406,-460.0,0.00019452,2]
[375843106,1753757443416,-1433.29,0.00019452,2]
[375843107,1753757443425,-468.93859922,0.00019452,2]
[375843108,1753757443435,-460.0,0.00019452,2]
[375843109,1753757443444,-460.0,0.00019452,2]
[375843110,1753757443456,-745.39,0.00019452,2]
[375843111,1753757443467,-460.0,0.00019452,2]
[375843113,1753757443477,-460.0,0.00019452,2]
[375843114,1753757443487,-609.18,0.00019452,2]
[375843115,1753757443496,-460.0,0.00019452,2]
[375843116,1753757443506,-1580.49,0.00019452,2]
[375843117,1753757443516,-460.0,0.00019452,2]
[375843118,1753757443525,-460.0,0.00019452,2]
[375843119,1753757443534,-460.0,0.00019452,2]
[375843120,1753757443547,-460.0,0.00019452,2]
[375843122,1753757443558,-460.0,0.00019452,2]
[375843124,1753757443568,-547.05,0.00019452,2]
[375843126,1753757443577,-162.15454695,0.00019452,2]
[375843128,1753757443588,-200.0,0.00019459,15]
[375843129,1753757443597,-200.0,0.00019459,15]
[375843130,1753757443606,-200.0,0.00019459,15]
[375843131,1753757443616,-200.0,0.00019459,15]
[375843132,1753757443625,-488.60497925,0.00019584,2]
[375843133,1753757443635,-500.0,0.00019625,2]
[375843134,1753757443645,-1000.0,0.00019721,2]
[375843135,1753757443654,-500.0,0.00019725,2]
[375843136,1753757443664,-500.0,0.00019725,2]
[375843137,1753757443673,-446.67201063,0.00019725,2]
[375843139,1753757443683,-1133.33,0.00019725,2]
[375843141,1753757443693,-460.0,0.00019726,2]
[375843142,1753757443702,-202.3829982,0.00019726,2]
[375843143,1753757443713,-151.0,0.00019726,2]
[375843144,1753757443722,-202.77827561,0.00019726,2]
[375843145,1753757443731,-1846.48,0.00019726,2]
[375843146,1753757443740,-460.0,0.00019726,2]
[375843147,1753757443750,-460.0,0.00019726,2]
[375843148,1753757443889,-460.0,0.00019726,2]
[375843149,1753757443899,-460.0,0.00019726,2]
[375843150,1753757443909,-604.70177322,0.00019726,2]
[375843151,1753757443919,-460.0,0.00019726,2]
[375843152,1753757443928,-460.0,0.00019726,2]
[375843153,1753757443938,-152.0926386,0.00019726,2]
[375843154,1753757443947,-151.73576305,0.00019726,2]
[375843155,1753757443958,-1086.78,0.00019726,2]
[375843156,1753757443968,-151.27400105,0.00019726,2]
[375843157,1753757443977,-151.51466692,0.00019726,2]
[375843158,1753757443987,-460.0,0.00019726,2]
[375843159,1753757443996,-460.0,0.00019726,2]
[375843160,1753757444006,-460.0,0.00019726,2]
[375843161,1753757444015,-593.69,0.00019726,2]
[375843162,1753757444025,-460.0,0.00019726,2]
[375843163,1753757444034,-151.0,0.00019726,2]
[375843164,1753757444043,-460.0,0.00019726,2]
[375843165,1753757444053,-460.0,0.00019726,2]
[375843166,1753757444062,-566.46456251,0.00019726,2]
[375843168,1753757444072,-460.0,0.00019726,2]
[375843170,1753757444081,-460.0,0.00019726,2]
[375843171,1753757444091,-460.0,0.00019726,2]
[375843172,1753757444103,-460.0,0.00019726,2]
[375843173,1753757444113,-363.09443268,0.00019726,2]
[375843174,1753757444122,-460.0,0.00019726,2]
[375843175,1753757444131,-460.0,0.00019726,2]
[375843176,1753757444140,-460.0,0.00019726,2]
[375843177,1753757444150,-460.0,0.00019726,2]
[375843178,1753757444159,-460.0,0.00019726,2]
[375843179,1753757444169,-1292.48,0.00019726,2]
[375843180,1753757444178,-460.0,0.00019726,2]
[375843181,1753757444187,-460.0,0.00019726,2]
[375843182,1753757444197,-460.0,0.00019726,2]
[375843183,1753757444206,-469.98702605,0.00019726,2]
[375843184,1753757444216,-460.0,0.00019726,2]
[375843185,1753757444225,-460.0,0.00019726,2]
[375843186,1753757444234,-3501.71,0.00019726,2]
[375843187,1753757444243,-460.0,0.00019726,2]
[375843188,1753757444253,-460.0,0.00019726,2]
[375843189,1753757444262,-460.0,0.00019726,2]
[375843190,1753757444272,-460.0,0.00019726,2]
[375843191,1753757444281,-460.0,0.00019726,2]
[375843192,1753757444291,-460.0,0.00019726,2]
[375843193,1753757444300,-460.0,0.00019726,2]
[375843194,1753757444310,-574.5,0.00019726,2]
[375843195,1753757444319,-460.0,0.00019726,2]
[375843196,1753757444329,-460.0,0.00019726,2]
[375843197,1753757444338,-572.8,0.00019726,2]
[375843198,1753757444347,-460.0,0.00019726,2]
[375843199,1753757444356,-460.0,0.00019726,2]
[375843200,1753757444366,-460.0,0.00019726,2]
[375843201,1753757444375,-460.0,0.00019726,2]
[375843202,1753757444385,-460.0,0.00019726,2]
[375843203,1753757444394,-460.0,0.00019726,2]
[375843204,1753757444403,-460.0,0.00019726,2]
[375843205,1753757444413,-460.0,0.00019726,2]
[375843206,1753757444423,-460.0,0.00019726,2]
[375843207,1753757444432,-643.02,0.00019726,2]
[375843208,1753757444441,-460.0,0.00019726,2]
[375843209,1753757444451,-460.0,0.00019726,2]
[375843210,1753757444465,-500.0,0.00019726,2]
[375843211,1753757444474,-151.0,0.00019726,2]
[375843212,1753757444484,-152.77212631,0.00019726,2]
[375843213,1753757444493,-460.0,0.00019726,2]
[375843214,1753757444504,-693.73,0.00019726,2]
[375843215,1753757444513,-479.76363087,0.00019726,2]
[375843216,1753757444524,-468.64273921,0.00019726,2]
[375843217,1753757444536,-1359.1,0.00019726,2]
[375843218,1753757444545,-460.0,0.00019726,2]
[375843219,1753757444555,-2001.82,0.00019726,2]
[375843220,1753757444564,-463.7,0.00019726,2]
[375843221,1753757444574,-460.0,0.00019726,2]
[375843222,1753757444583,-460.0,0.00019726,2]
[375843223,1753757444593,-550.14,0.00019726,2]
[375843224,1753757444603,-460.0,0.00019726,2]
[375843225,1753757444613,-661.35,0.00019726,2]
[375843226,1753757444622,-438.43369676,0.00019726,2]
[375843227,1753757444632,-460.0,0.00019726,2]
[375843228,1753757444642,-466.51538751,0.00019726,2]
[375843229,1753757444653,-2030.95,0.00019726,2]
[375843230,1753757444662,-460.0,0.00019726,2]
[375843231,1753757444672,-460.0,0.00019726,2]
[375843232,1753757444682,-460.0,0.00019726,2]
[375843233,1753757444692,-460.0,0.00019726,2]
[375843234,1753757444704,-460.0,0.00019726,2]
[375843235,1753757444714,-460.0,0.00019726,2]
[375843237,1753757444724,-460.0,0.00019726,2]
[375843239,1753757444733,-460.0,0.00019726,2]
[375843241,1753757444743,-460.0,0.00019726,2]
[375843242,1753757444752,-460.0,0.00019726,2]
[375843244,1753757444763,-460.0,0.00019726,2]
[375843246,1753757444773,-1252.67,0.00019726,2]
[375843248,1753757444783,-628.39,0.00019726,2]
[375843250,1753757444793,-5072.52,0.00019726,2]
[375843252,1753757444802,-460.0,0.00019726,2]
[375843253,1753757444812,-460.0,0.00019726,2]
[375843255,1753757444824,-1395.0,0.00019726,2]
[375843256,1753757444834,-1374.39,0.00019726,2]
[375843257,1753757444843,-460.0,0.00019726,2]
[375843259,1753757444854,-478.95,0.00019726,2]
[375843261,1753757444863,-460.0,0.00019726,2]
[375843263,1753757444873,-460.0,0.00019726,2]
[375843265,1753757444883,-514.18,0.00019726,2]
[375843267,1753757444895,-460.0,0.00019726,2]
[375843269,1753757444905,-1433.29,0.00019726,2]
[375843271,1753757444915,-460.0,0.00019726,2]
[375843273,1753757444925,-460.0,0.00019726,2]
[375843274,1753757444936,-745.39,0.00019726,2]
[375843276,1753757444946,-460.0,0.00019726,2]
[375843278,1753757444959,-460.0,0.00019726,2]
[375843280,1753757444969,-609.18,0.00019726,2]
[375843282,1753757444980,-460.0,0.00019726,2]
[375843284,1753757444990,-1580.49,0.00019726,2]
[375843286,1753757444999,-460.0,0.00019726,2]
[375843288,1753757445009,-460.0,0.00019726,2]
[375843289,1753757445019,-460.0,0.00019726,2]
[375843291,1753757445028,-153.8765087,0.00019726,2]
[375843292,1753757445037,-460.0,0.00019726,2]
[375843293,1753757445046,-460.0,0.00019726,2]
[375843294,1753757445055,-547.05,0.00019726,2]
[375843295,1753757445064,-505.35491217,0.00019773,2]
[375843296,1753757445073,-1133.33,0.00019935,2]
[375843297,1753757445082,-1133.33,0.00019999,2]
[375843298,1753757445091,-151.0,0.0002,2]
[375843299,1753757445100,-151.0,0.0002,2]
[375843300,1753757445109,-500.0,0.0002,2]
[375843301,1753757445119,-151.0,0.0002,2]
[375843302,1753757445129,-233.58690594,0.0002,2]
[375843303,1753757445139,-1846.48,0.0002,2]
[375843304,1753757445149,-460.0,0.0002,2]
[375843305,1753757445160,-460.0,0.0002,2]
[375843306,1753757445169,-460.0,0.0002,2]
[375843307,1753757445179,-460.0,0.0002,2]
[375843308,1753757445189,-460.0,0.0002,2]
[375843309,1753757445199,-460.0,0.0002,2]
[375843310,1753757445216,-1086.78,0.0002,2]
[375843311,1753757445226,-460.0,0.0002,2]
[375843312,1753757445236,-460.0,0.0002,2]
[375843313,1753757445246,-257.79064224,0.0002,2]
[375843314,1753757445256,-593.69,0.0002,2]
[375843315,1753757445265,-460.0,0.0002,2]
[375843316,1753757445275,-460.0,0.0002,2]
[375843317,1753757445284,-460.0,0.0002,2]
[375843318,1753757445293,-465.35367499,0.0002,2]
[375843319,1753757445303,-460.0,0.0002,2]
[375843320,1753757445312,-460.0,0.0002,2]
[375843321,1753757445322,-460.0,0.0002,2]
[375843322,1753757445331,-460.0,0.0002,2]
[375843323,1753757445340,-460.0,0.0002,2]
[375843324,1753757445349,-460.0,0.0002,2]
[375843325,1753757445358,-460.0,0.0002,2]
[375843326,1753757445367,-568.25130921,0.0002,2]
[375843328,1753757445376,-1292.48,0.0002,2]
[375843329,1753757445386,-460.0,0.0002,2]
[375843330,1753757445395,-460.0,0.0002,2]
[375843332,1753757445405,-460.0,0.0002,2]
[375843334,1753757445415,-469.23866829,0.0002,2]
[375843336,1753757445425,-460.0,0.0002,2]
[375843337,1753757445434,-3501.71,0.0002,2]
[375843339,1753757445443,-460.0,0.0002,2]
[375843341,1753757445453,-460.0,0.0002,2]
[375843343,1753757445465,-460.0,0.0002,2]
[375843345,1753757445478,-555.00328478,0.0002,2]
[375843347,1753757445487,-460.0,0.0002,2]
[375843349,1753757445497,-460.0,0.0002,2]
[375843351,1753757445507,-460.0,0.0002,2]
[375843354,1753757445523,-574.5,0.0002,2]
[375843356,1753757445537,-460.0,0.0002,2]
[375843359,1753757445552,-460.0,0.0002,2]
[375843361,1753757445565,-572.8,0.0002,2]
[375843363,1753757445579,-460.0,0.0002,2]
[375843365,1753757445590,-460.0,0.0002,2]
[375843367,1753757445601,-460.0,0.0002,2]
[375843370,1753757445615,-460.0,0.0002,2]
[375843371,1753757445626,-460.0,0.0002,2]
[375843373,1753757445639,-460.0,0.0002,2]
[375843375,1753757445651,-475.07432688,0.0002,2]
[375843377,1753757445663,-460.0,0.0002,2]
[375843379,1753757445676,-643.02,0.0002,2]
[375843382,1753757445689,-460.0,0.0002,2]